Workbook

Sheet Informe_7
A1: ENTEL PERU S.A.-2019-7 ATRIBUCIÓN DE GASTOS A LAS LINEAS DE NEGOCIO-17072020
B3: INFORME 7: ATRIBUCIÓN DE GASTOS A LAS LINEAS DE NEGOCIO | P3: Informe 7 : ATRIBUCION DE GASTOS A LAS LINEAS DE NEGOCIO
A5: Periodo de reporte: Al 31 de Diciembre 2019
A7: Expresado en Miles de Nuevos Soles | B7: 1. Acceso Instalación Telefonía Fija de Abonado Urbano | C7: 2. Prestación del servicio de voz Telefonía Fija local desde Abonado Urbano | D7: 3. Prestación del servicio de voz Telefonía Fija LD desde Abonado Urbano | E7: 4. Prestación del servicio de voz Telefonía Fija Local desde TUP Urbano | F7: 5. Prestación del servicio de voz Telefonía Fija LD desde TUP Urbano | G7: 6. Acceso Instalación Telefonía Fija de Abonado Rural | H7: 7. Prestación del servicio de voz Telefonía Fija Local desde Abonado Rural | I7: 8. Prestación del servicio de voz Telefonía Fija LD desde Abonado Rural | J7: 9. Prestación del servicio de voz Telefonía Fija Local desde TUP Rural | K7: 10. Prestación del servicio de voz Telefonía Fija LD desde TUP Rural | L7: 11. Instalación Televisión de Paga | M7: 12. Prestación de servicios Televisión de Paga | N7: 13. Instalación Internet Fijo | O7: 14. Prestación de servicios Internet Fijo | P7: 15. Prestación de servicio voz móvil por Telefonía Móvil | Q7: 16. Mensajes de Texto Telefonía Móvil | R7: 17. Roaming Internacional por Telefonía Móvil | S7: 18. Prestación de Internet Móvil | T7: 19. Servicios Suplementarios | U7: 20. Servicios de valor añadido (No incluye Internet) | V7: 21. Suministro de Equipos | W7: 22. Instalación para Alquiler de circuitos y Transmisión de Datos para clientes privados y otros operadores | X7: 23. Alquiler de Circuitos y Transmisión de Datos a clientes privados y otros operadores | Y7: 24. Provisión de acceso a EEDE | Z7: 25. Interconexión | AA7: Total
A8: Gastos de Personal | C8: 11.616 | D8: 0.052 | O8: 69513.221 | P8: 35133.15 | R8: 2197.927 | S8: 207268.375 | T8: 593.328 | V8: 14167.097 | Y8: 1040.174 | Z8: =2135.111-0.00145 -> 2135.10955 | AA8: =SUM(C8:Z8) -> 332060.0495
A9: Gastos Generales y Administrativos | C9: 56.275 | D9: 4.147 | O9: 287759.641 | P9: 41730.307 | R9: 7074.081 | S9: 960834.259 | T9: 25092.817 | V9: 52235.017 | Y9: 2210.219 | Z9: 24075.626 | AA9: =SUM(C9:Z9) -> 1401072.389
A10: Depreciación | C10: 0.977 | D10: 0.654 | O10: 97168.154 | P10: 1415.866 | Q10: 0.13 | R10: 106.222 | S10: 252433.267 | Z10: =654.937+0.27468 -> 655.21168 | AA10: =SUM(C10:Z10) -> 351780.4817
A11: Amortización | C11: 0.246 | D11: 0.164 | O11: 24443.907 | P11: 356.179 | Q11: 0.033 | R11: 26.722 | S11: 63502.856 | Z11: =164.758+0.06901 -> 164.82701 | AA11: =SUM(C11:Z11) -> 88494.93401
A12: Deterioro de Activos Fijos | AA12: =SUM(C12:Z12) -> 0
A13: Existencias | T13: 0 | V13: 915497.031 | AA13: =SUM(B13:Z13) -> 915497.031
A14: Capitalización de Gastos por Construcción de Planta o Trabajo para el Inmovilizado | C14: -0.27 | D14: -0.011 | O14: -7785.047 | P14: -765.325 | R14: -0.145 | S14: -37980.445 | T14: 0.146 | Z14: -386.848 | AA14: =SUM(B14:Z14) -> -46917.945
A15: Honorarios por transferencia de capacidad tecnica | AA15: =SUM(B15:Z15) -> 0
A16: Provisión para desvalorización de activos | V16: 17168.03 | AA16: =SUM(B16:Z16) -> 17168.03
A17: Otros Gastos Operativos | AA17: =SUM(B17:Z17) -> 0
A18: Total general | B18: =+SUM(B8:B17) -> 0 | C18: 68.844 | D18: 5.006 | E18: 0 | F18: 0 | G18: 0 | H18: 0 | I18: 0 | J18: 0 | K18: 0 | L18: 0 | M18: 0 | N18: 0 | O18: 471099.876 | P18: 77870.177 | Q18: 0.163 | R18: 9404.807 | S18: 1446058.312 | T18: 25686.291 | U18: 0 | V18: 999067.175 | W18: 0 | X18: 0 | Y18: 3250.393 | Z18: 26643.92624 | AA18: =+SUM(AA8:AA17) -> 3059154.97
C20: =(+C18/$AA$18)*$AA$20 -> 21.75495043 | D20: 1.581913919 | E20: 0 | F20: 0 | G20: 0 | H20: 0 | I20: 0 | J20: 0 | K20: 0 | L20: 0 | M20: 0 | N20: 0 | O20: 148869.2471 | P20: 24607.25467 | Q20: 0.05150858347 | R20: 2971.952677 | S20: 456959.6028 | T20: 8116.959901 | U20: 0 | V20: 315708.8035 | W20: 0 | X20: 0 | Y20: 1027.135823 | Z20: =(+Z18/$AA$18)*$AA$20 -> 8419.576065 | AA20: 966703.921
